bitfinex/quotes_ETHUSD_20260114
["timestamp","ask_amount","ask_price","bid_price","bid_amount"]
[1768430634292,0.99534994,3349.1,3347.8,0.94533294]
[1768430634980,0.94494842,3349.3,3347.9,0.94533294]
[1768430635185,0.94394842,3349.1,3347.9,0.94533294]
[1768430635409,0.94394842,3349.0,3348.0,0.39]
[1768430635617,0.94394842,3348.9,3348.0,0.39]
[1768430636706,5.34629434,3349.3,3348.1,0.94533294]
[1768430637088,0.94394842,3349.2,3348.1,0.94533294]
[1768430637272,0.001,3349.3,3348.1,0.94533294]
[1768430637479,0.001,3349.3,3348.3,0.94533294]
[1768430639099,0.94494842,3349.3,3348.3,0.94533294]
[1768430639891,0.001,3349.3,3348.3,0.94533294]
[1768430640779,0.001,3349.3,3348.5,0.94533294]
[1768430641407,0.001,3349.6,3349.0,0.94533294]
[1768430642409,0.001,3349.6,3348.9,0.39]
[1768430642796,0.001,3349.6,3348.9,1.33533294]
[1768430642974,0.94394842,3349.9,3348.9,1.33533294]
[1768430643694,0.94394842,3349.9,3348.9,0.39]
[1768430644098,0.94394842,3349.9,3348.9,1.33533294]
[1768430644429,0.94394842,3349.9,3349.0,0.94533294]
[1768430644786,0.94394842,3349.9,3348.9,0.39]
[1768430648894,0.94394842,3349.9,3348.9,1.33533294]
[1768430649200,0.94394842,3349.9,3349.0,0.94533294]
[1768430649612,0.94394842,3350.4,3349.0,0.94533294]
[1768430649812,0.94394842,3350.2,3349.0,0.94533294]
[1768430652797,0.94394842,3350.6,3349.0,0.94533294]
[1768430653310,0.94394842,3350.6,3349.4,0.94533294]
[1768430653506,0.001,3349.9,3349.4,0.94533294]
[1768430653694,0.94394842,3350.4,3349.4,0.94533294]
[1768430657028,0.94394842,3350.4,3349.3,0.002]
[1768430659636,0.94394842,3350.4,3349.3,0.94733294]
[1768430660003,0.94394842,3350.4,3349.3,1.34086089]
[1768430660831,0.94394842,3350.4,3349.5,0.97907989]
[1768430661802,0.94394842,3350.4,3349.5,1.36907989]
[1768430662513,0.94394842,3350.4,3349.6,0.98379339]
[1768430663243,0.93727655,3350.6,3349.6,0.98379339]
[1768430663399,0.93727655,3350.6,3349.8,0.98379339]
[1768430663905,0.93727655,3351.0,3349.9,0.02985163]
[1768430664217,0.93727655,3351.0,3349.9,0.98379339]
[1768430665401,0.93727655,3351.0,3350.1,0.98379339]
[1768430665724,0.93727655,3351.0,3350.2,0.39]
[1768430666508,0.001,3350.3,3350.2,1.37379339]
[1768430666834,0.93727655,3351.0,3350.2,1.37379339]
[1768430667730,0.93727655,3351.0,3350.2,0.39]
[1768430668725,0.93727655,3351.0,3349.7,1.65570216]
[1768430669039,0.93727655,3351.0,3349.8,0.55577022]
[1768430670829,0.93727655,3350.8,3349.8,0.55577022]
[1768430670998,0.93727655,3350.8,3349.8,0.39]
[1768430672825,0.0371169,3350.7,3349.8,0.39]
[1768430673028,0.93727655,3350.6,3349.8,0.39]
[1768430674036,0.405,3351.0,3349.6,0.002]
[1768430674037,0.93727655,3350.4,3349.6,0.002]
[1768430676508,0.93727655,3350.3,3349.6,0.002]
[1768430676941,0.93727655,3350.2,3349.6,0.002]
[1768430677822,0.93727655,3350.1,3349.6,0.002]
[1768430678340,0.93827655,3350.1,3349.6,0.002]
[1768430681242,0.97539345,3350.1,3349.6,0.002]
[1768430681435,0.93727655,3349.9,3349.6,0.002]
[1768430681630,0.93727655,3349.9,3349.3,0.002]
[1768430682452,0.93727655,3349.9,3348.4,0.98379339]
[1768430682453,0.93727655,3349.8,3347.9,5.34729434]
[1768430682633,0.93727655,3349.6,3347.9,6.33108773]
[1768430682831,0.93727655,3349.6,3348.0,0.97071104]
[1768430683014,0.93727655,3349.6,3348.0,1.95450443]
[1768430685665,0.97439345,3349.6,3348.1,0.98379339]
[1768430686172,6.0080125,3349.6,3348.0,0.97071104]
[1768430686350,6.0080125,3349.6,3347.9,0.002]
[1768430686351,0.93727655,3349.2,3347.9,0.002]
[1768430686560,0.93727655,3349.0,3347.9,0.002]
[1768430687063,3.137,3348.9,3347.9,0.002]
[1768430687251,0.93727655,3348.8,3347.9,0.002]
[1768430690474,0.93727655,3348.8,3348.4,0.002]
[1768430697290,0.94077407,3348.6,3348.4,0.002]
[1768430697475,1.34577407,3348.6,3348.4,0.002]
[1768430700673,0.94077407,3349.2,3348.4,0.002]
[1768430700883,0.81277741,3349.1,3348.4,0.002]
[1768430701608,1.75355148,3349.1,3348.4,0.002]
[1768430701764,0.94077407,3349.0,3348.4,0.002]
[1768430701969,0.87177407,3349.0,3348.4,0.002]
[1768430705195,0.81277741,3349.1,3348.4,0.002]
[1768430705196,0.40777741,3349.1,3348.4,0.002]
[1768430705370,0.405,3348.9,3348.4,0.96001139]
[1768430706888,0.405,3348.9,3348.4,0.002]
[1768430708501,0.405,3348.9,3348.4,0.96001139]
[1768430708667,0.94077407,3349.2,3348.4,0.96001139]
[1768430708869,0.405,3349.0,3348.4,0.96001139]
[1768430710199,0.94077407,3349.4,3348.4,0.96001139]
[1768430710378,0.405,3349.4,3348.4,0.96001139]
[1768430711588,0.94077407,3349.3,3348.4,0.96001139]
[1768430712192,0.94077407,3349.3,3348.4,0.002]
[1768430712701,0.405,3349.4,3348.4,0.96001139]
[1768430714908,1.34577407,3349.4,3348.4,0.96001139]
[1768430715280,1.34577407,3349.4,3348.7,0.002]
[1768430715476,0.001,3349.0,3348.7,0.002]
[1768430715881,0.001,3349.0,3348.7,0.96001139]
[1768430716099,0.001,3349.0,3348.7,0.002]
[1768430723420,0.001,3349.0,3348.7,0.92800355]
[1768430723610,0.405,3349.4,3348.7,0.92800355]
[1768430724119,1.36255146,3349.4,3348.7,0.92800355]
[1768430724324,1.36255146,3349.4,3348.7,0.002]
[1768430724497,0.95755146,3349.4,3348.7,0.002]
[1768430727602,0.95755146,3349.3,3348.7,0.002]
[1768430728816,0.95755146,3349.3,3349.0,0.002]
[1768430729011,0.001,3349.1,3349.0,0.002]
[1768430731494,0.95855146,3349.1,3349.0,0.002]
[1768430732396,0.001,3349.1,3349.0,0.002]
[1768430738632,0.001,3349.1,3348.7,0.002]
[1768430738837,0.001,3349.1,3348.7,0.92800355]
[1768430739037,0.001,3350.1,3348.9,0.92600355]
[1768430739234,0.95855146,3350.1,3348.9,0.92600355]
[1768430741008,0.001,3350.1,3348.9,0.92600355]
[1768430741402,0.001,3350.1,3349.0,0.92600355]
[1768430741620,0.001,3350.1,3349.2,0.92600355]
[1768430742842,0.001,3350.1,3349.3,0.92600355]
[1768430748959,0.95755146,3349.9,3348.6,0.002]
[1768430749126,0.95755146,3349.7,3348.6,0.002]
[1768430749449,0.95755146,3349.5,3348.6,0.002]
[1768430749649,0.95755146,3349.3,3348.6,0.002]
[1768430753542,0.95755146,3349.3,3349.0,0.002]
[1768430757254,0.98815093,3349.6,3349.0,0.002]
[1768430760445,0.98815093,3350.0,3349.0,0.002]
[1768430760648,0.71110572,3349.9,3349.0,0.94283505]
[1768430760948,0.001,3350.1,3349.1,0.94083505]
[1768430761149,0.001,3350.1,3349.3,0.94083505]
[1768430761852,0.001,3350.1,3349.6,0.94083505]
[1768430763131,0.98815093,3350.7,3349.8,0.94083505]
[1768430763330,1.39315093,3351.0,3349.8,0.94083505]
[1768430763526,0.98815093,3351.0,3349.8,0.94083505]
[1768430763929,0.98815093,3351.0,3350.0,0.94083505]
[1768430764256,0.98815093,3351.2,3349.9,0.3926259]
[1768430764625,0.98815093,3351.2,3349.9,1.33346095]
[1768430765533,0.98815093,3351.2,3350.0,0.94083505]
[1768430769064,0.98815093,3351.0,3350.0,0.94083505]
[1768430772158,0.405,3351.1,3350.0,0.94083505]
[1768430772352,0.98815093,3351.4,3350.0,0.94083505]
[1768430772553,0.405,3351.2,3350.0,0.94083505]
[1768430773133,1.39315093,3351.2,3350.0,0.94083505]
[1768430775268,0.98815093,3351.2,3350.0,0.94083505]
[1768430775454,1.39315093,3351.2,3350.0,0.94083505]
[1768430775655,0.98815093,3351.2,3350.0,0.94083505]
[1768430775869,0.98815093,3351.2,3350.2,0.94083505]
[1768430776987,0.001,3350.9,3350.2,0.94083505]
[1768430779745,0.001,3350.9,3350.4,0.94083505]
[1768430779976,0.98815093,3351.5,3350.6,0.94083505]
[1768430787781,0.97616326,3351.8,3350.6,0.94083505]
[1768430787981,0.97616326,3351.8,3350.4,5.34268344]
[1768430787982,1.38116326,3351.9,3350.8,0.98414983]
[1768430788191,0.97616326,3351.9,3350.8,0.98414983]
[1768430788354,1.38116326,3351.9,3350.8,0.98414983]
[1768430788556,0.97616326,3351.9,3350.8,0.98414983]
[1768430788796,0.97616326,3352.1,3351.0,0.98414983]
[1768430788994,0.001,3351.2,3351.0,0.98414983]
[1768430789170,0.97616326,3352.1,3351.2,0.98414983]
[1768430789484,0.97616326,3352.8,3351.5,0.98414983]
[1768430789664,0.97616326,3352.6,3351.5,0.98414983]
[1768430789861,0.43635671,3352.7,3351.5,0.98414983]
[1768430790062,0.97616326,3352.9,3351.5,0.98414983]
[1768430793769,2.9824336,3353.0,3351.5,0.98414983]
[1768430794066,0.97616326,3352.9,3351.5,0.98414983]
[1768430796883,1.38116326,3353.1,3351.8,0.98414983]
[1768430797082,0.97616326,3353.0,3352.0,0.98414983]
[1768430797883,0.405,3353.1,3352.0,0.98414983]
[1768430798398,0.97616326,3353.3,3352.0,0.98414983]
[1768430799175,0.97616326,3353.2,3352.0,0.98414983]
[1768430799371,3.38704807,3353.4,3352.2,0.98414983]
[1768430799572,0.97616326,3353.3,3352.2,0.98414983]
[1768430799899,0.97616326,3353.3,3352.1,0.16466679]
[1768430800198,0.97616326,3353.3,3352.1,1.14881662]
[1768430800401,1.38116326,3353.3,3352.1,1.14881662]
[1768430800592,0.97616326,3353.3,3352.3,0.98414983]
[1768430801303,3.95831044,3353.3,3352.3,0.98414983]
[1768430801502,6.94045762,3353.3,3352.3,0.98414983]
[1768430801810,3.95831044,3353.3,3352.3,0.98414983]
[1768430802175,0.001,3353.0,3352.3,0.98414983]
[1768430804676,0.97716326,3353.0,3352.2,0.21715]
[1768430805174,0.97616326,3352.9,3351.9,1.02268333]
[1768430805374,0.97616326,3352.9,3351.8,0.002]
[1768430805701,0.97616326,3352.9,3351.8,0.98614983]
[1768430805903,0.001,3353.0,3351.8,0.98614983]
[1768430808705,0.97716326,3353.0,3351.8,0.98614983]
[1768430812723,0.97716326,3353.0,3351.8,0.002]
[1768430812892,0.98903288,3352.8,3350.6,0.91643193]
[1768430813221,1.22260318,3352.6,3350.6,0.91643193]
[1768430814848,1.22260318,3352.4,3350.6,0.91643193]
[1768430815047,1.22260318,3352.4,3350.9,0.002]
[1768430817104,0.98903288,3352.2,3350.9,0.002]
[1768430817306,0.98903288,3352.0,3350.9,0.002]
[1768430817507,0.98903288,3352.0,3350.9,0.91643193]
[1768430817850,0.99003288,3352.7,3351.0,0.91443193]
[1768430818051,0.001,3352.7,3351.1,0.91443193]
[1768430818216,0.001,3352.7,3351.3,0.91443193]
[1768430818541,0.001,3352.7,3351.5,0.91443193]
[1768430818838,0.001,3352.7,3351.7,0.91443193]
[1768430819043,2.98367143,3352.7,3351.7,0.91443193]
[1768430819346,0.001,3352.7,3351.9,0.91443193]
[1768430819514,0.001,3352.7,3352.1,0.91443193]
[1768430820943,0.001,3352.7,3351.8,0.91443193]
[1768430821151,0.99003288,3352.7,3351.7,0.91443193]
[1768430822141,0.001,3352.7,3351.7,0.91443193]
[1768430825666,0.99003288,3352.7,3351.6,0.39]
[1768430825821,0.001,3352.7,3351.7,0.91443193]
[1768430828053,0.001,3352.7,3351.9,0.91443193]
[1768430828228,0.001,3352.7,3352.1,0.91443193]
[1768430828433,0.001,3352.7,3352.3,0.91443193]
[1768430829671,0.001,3353.0,3352.3,0.91443193]
[1768430836560,0.001,3353.0,3352.4,0.91443193]
[1768430836766,0.98903288,3353.7,3352.8,0.91443193]
[1768430838270,0.98903288,3353.6,3352.8,0.91443193]
[1768430838971,0.98903288,3353.6,3352.7,0.39]
[1768430839753,0.98903288,3353.6,3352.7,1.30443193]
[1768430842775,0.98903288,3353.6,3352.8,0.90296769]
[1768430844974,0.98903288,3353.6,3352.7,0.39]
[1768430845304,0.92923573,3353.4,3351.9,0.90296769]
[1768430845444,0.92923573,3353.2,3352.0,3.76092711]
[1768430845645,0.92923573,3353.0,3352.0,0.77763601]
[1768430845877,0.92923573,3353.0,3351.8,0.90296769]
[1768430846066,0.92923573,3353.0,3352.0,0.39]
[1768430846455,0.92923573,3353.0,3352.1,0.90296769]
[1768430846661,0.92923573,3353.5,3352.1,0.90296769]
[1768430846868,0.92923573,3353.3,3352.1,0.90296769]
[1768430847072,0.92923573,3353.1,3352.1,0.90296769]
[1768430848260,0.92923573,3353.4,3352.3,0.90296769]
[1768430848450,0.92923573,3353.4,3352.1,2.98320128]
[1768430848451,0.92923573,3353.4,3352.5,0.90296769]
[1768430848783,0.92923573,3353.4,3352.6,0.02982759]
[1768430849150,0.92923573,3353.4,3352.6,0.93279528]
[1768430851386,0.92923573,3353.4,3352.6,0.90296769]
[1768430852087,0.92923573,3353.4,3352.9,0.002]
[1768430852385,0.001,3353.3,3352.9,0.002]
[1768430856091,0.93023573,3353.3,3352.9,0.002]
[1768430857098,0.001,3353.3,3352.9,0.002]
[1768430858280,0.93023573,3353.3,3352.9,0.002]
[1768430859087,0.001,3353.3,3352.9,0.002]
[1768430863792,0.93023573,3353.3,3352.9,0.002]
[1768430864813,0.92923573,3353.2,3352.3,0.39]
[1768430865114,0.96635263,3353.2,3352.3,0.39]
[1768430865473,0.92923573,3352.9,3352.3,0.39]
[1768430865674,0.001,3353.0,3352.3,0.39]
[1768430866672,0.93023573,3353.0,3352.3,0.39]
[1768430866872,0.96635263,3352.9,3352.3,0.39]
[1768430867180,0.0371169,3352.9,3352.3,0.39]
[1768430867605,0.001,3353.0,3352.4,0.90296769]
[1768430870203,0.001,3353.0,3352.3,0.39]
[1768430872004,0.95616503,3353.0,3352.3,0.39]
[1768430873005,0.95616503,3353.0,3352.2,0.39]
[1768430873989,0.95616503,3353.0,3352.2,0.8218528]
[1768430876692,0.95616503,3353.0,3352.2,0.39]
[1768430877007,0.95616503,3353.0,3352.5,0.002]
[1768430877244,0.001,3352.7,3352.5,0.002]
[1768430880726,0.001,3352.7,3352.2,0.39]
[1768430881493,0.95616503,3352.7,3352.2,0.39]
[1768430881931,0.95616503,3352.7,3352.1,0.002]
[1768430882430,0.001,3352.7,3352.1,0.002]
[1768430882590,0.95616503,3352.7,3352.1,0.002]
[1768430884131,0.001,3352.7,3352.1,0.002]
[1768430884699,0.95616503,3352.7,3351.8,0.391]
[1768430886236,0.95616503,3352.7,3351.8,1.3361622]
[1768430886434,0.95616503,3352.7,3351.8,2.30124196]
[1768430887904,0.95516503,3352.5,3351.8,1.35607976]
[1768430890125,0.95516503,3352.5,3352.1,0.002]
[1768430892052,0.95516503,3352.3,3352.1,0.002]
[1768430892547,0.95516503,3352.3,3351.8,0.393]
[1768430893038,0.95516503,3351.9,3351.2,0.002]
[1768430893229,0.95516503,3351.7,3351.2,0.002]
[1768430894818,0.95516503,3351.5,3351.2,0.002]
[1768430896020,1.18873533,3352.1,3351.2,0.002]
[1768430896337,0.95516503,3352.6,3351.6,0.9451622]
[1768430896547,0.001,3352.7,3351.6,0.97499869]
[1768430896752,0.001,3352.7,3351.9,0.9451622]
[1768430902528,0.001,3352.4,3351.9,0.9451622]
[1768430902727,0.001,3352.7,3352.1,0.90157196]
[1768430904853,0.001,3352.7,3351.8,0.90157196]
[1768430905154,1.86079044,3355.9,3350.6,4.40932699]
[1768430905155,0.89412248,3354.0,3352.5,0.90157196]
[1768430905354,0.405,3353.9,3353.1,0.90157196]
[1768430905551,1.18612794,3353.9,3353.2,1.18875823]
[1768430905728,1.18612794,3353.9,3353.1,0.90157196]
[1768430905924,0.78112794,3354.3,3353.1,0.90157196]
[1768430906155,0.78112794,3354.2,3353.2,0.90157196]
[1768430906345,2.98110912,3354.5,3353.2,0.90157196]
[1768430906346,0.78112794,3354.1,3353.2,0.90157196]
[1768430906545,0.405,3354.0,3353.2,0.90157196]
[1768430910263,0.2335703,3354.3,3353.4,0.90157196]
[1768430910443,0.405,3353.9,3353.4,0.90157196]
[1768430910634,0.405,3353.8,3353.4,0.90157196]
[1768430910829,0.2335703,3354.2,3353.4,0.90157196]
[1768430911060,0.405,3354.1,3353.4,0.90157196]
[1768430911474,0.2335703,3354.2,3353.4,0.90157196]
[1768430911678,0.405,3354.0,3353.4,0.90157196]
[1768430912374,0.405,3354.0,3353.2,0.90157196]
[1768430912570,1.18612794,3354.0,3353.2,0.90157196]
[1768430912778,0.78112794,3353.9,3352.7,0.90157196]
[1768430912978,0.78112794,3353.9,3352.9,0.90157196]
[1768430915075,0.001,3353.8,3352.9,0.90157196]
[1768430915254,0.001,3353.8,3353.2,0.90157196]
[1768430915454,0.001,3353.8,3353.1,5.33090753]
[1768430915455,0.405,3354.1,3353.7,0.90157196]
[1768430915659,0.405,3354.3,3353.7,0.90157196]
[1768430916072,0.2335703,3354.4,3353.7,0.90157196]
[1768430916374,0.2335703,3354.4,3353.1,5.33090753]
[1768430916375,0.6385703,3354.4,3353.8,0.90157196]
[1768430916679,0.2335703,3354.4,3353.8,0.90157196]
[1768430916846,0.6385703,3354.4,3353.8,0.90157196]
[1768430917247,0.41805703,3354.3,3353.8,0.90157196]
[1768430917465,0.40500003,3354.5,3353.8,0.90157196]
[1768430917669,0.81000003,3354.5,3353.8,0.90157196]
[1768430919277,0.405,3354.4,3353.8,0.90157196]
[1768430920380,0.40500003,3354.5,3353.8,0.90157196]
[1768430920568,0.405,3354.4,3353.8,0.90157196]
[1768430921248,0.40500003,3354.5,3353.8,0.90157196]
[1768430921453,0.405,3354.4,3353.8,0.90157196]
[1768430922249,0.78112794,3355.8,3354.2,0.90157196]
[1768430922449,0.78112794,3355.6,3354.2,0.90157196]
[1768430922677,0.78112794,3355.4,3354.2,0.90157196]
[1768430922866,0.405,3355.3,3354.2,0.90157196]
[1768430923254,0.78112794,3355.2,3354.2,0.90157196]
[1768430925664,0.38979589,3355.7,3354.3,5.33090753]
[1768430925862,0.2414342,3357.0,3354.3,5.33090753]
[1768430925863,0.2335703,3355.6,3354.5,0.90157196]
[1768430926066,4.03046741,3356.7,3354.5,0.90157196]
[1768430926067,0.404,3355.5,3354.5,0.90157196]
[1768430926387,0.2335703,3355.8,3354.7,0.90157196]
[1768430926388,0.404,3355.6,3354.7,0.90157196]
[1768430926561,0.2335703,3355.9,3354.7,0.90157196]
[1768430926761,0.404,3355.5,3354.7,0.90157196]
[1768430927265,0.404,3355.7,3354.7,0.90157196]
[1768430927462,0.78112794,3356.1,3354.9,0.90157196]
[1768430927463,0.001,3355.2,3354.9,0.90157196]
[1768430927781,0.001,3355.2,3354.8,0.66526868]
[1768430927782,0.78112794,3356.1,3355.1,0.90157196]
[1768430928092,0.404,3355.7,3354.5,0.90157196]
[1768430928257,0.78112794,3355.6,3354.5,0.90157196]
[1768430928870,0.78112794,3355.6,3354.2,0.90157196]
[1768430929087,0.78112794,3355.6,3354.3,0.90157196]
[1768430930179,0.78112794,3355.4,3354.3,0.90157196]
[1768430930480,0.78112794,3355.2,3354.3,0.90157196]
[1768430930676,0.404,3355.1,3353.7,0.97935942]
[1768430930882,0.78112794,3355.0,3353.9,0.97935942]
[1768430931859,0.78112794,3355.0,3353.6,0.97935942]
[1768430933469,0.78112794,3354.8,3353.6,0.97935942]
[1768430936194,0.78112794,3354.8,3353.3,0.97935942]
[1768430936497,0.404,3354.7,3353.3,0.97935942]
[1768430936695,1.18512794,3354.7,3353.5,0.97935942]
[1768430936896,0.78112794,3354.6,3353.5,0.97935942]
[1768430937099,3.91812794,3354.8,3353.5,0.97935942]
[1768430937323,0.404,3354.5,3353.5,0.97935942]
[1768430937500,0.404,3354.5,3353.6,0.97935942]
[1768430938590,1.18512794,3354.5,3353.6,0.97935942]
[1768430938790,0.78112794,3354.4,3353.3,0.97935942]
[1768430939901,0.78112794,3354.4,3353.8,0.002]
[1768430940600,0.78112794,3354.4,3353.5,0.97935942]
[1768430944901,0.404,3354.3,3353.5,0.97935942]
[1768430952028,0.404,3354.3,3353.8,0.002]
[1768430952421,0.001,3354.0,3353.8,0.002]
[1768430952612,0.404,3354.3,3353.8,0.002]
[1768430956731,0.78112794,3354.2,3353.8,0.002]
[1768430956932,1.18512794,3354.2,3353.8,0.002]
[1768430957234,0.78112794,3354.2,3353.8,0.002]
[1768430957440,0.404,3354.1,3353.8,0.002]
[1768430958103,2.98063152,3355.0,3353.8,0.002]
[1768430958104,0.2335703,3355.1,3353.9,0.97935942]
[1768430958409,0.2335703,3354.9,3353.9,0.97935942]
[1768430959329,3.21429797,3354.9,3353.8,0.002]
[1768430959538,0.2335703,3354.9,3353.8,0.002]
[1768430960238,3.21428577,3354.9,3353.8,0.002]
[1768430960433,0.72105611,3354.8,3353.8,0.002]
[1768430961139,0.2335703,3354.6,3353.8,0.99010146]
[1768430962153,0.2335703,3354.6,3353.8,0.002]
[1768430963519,0.2335703,3354.4,3353.8,0.002]
[1768430965046,0.2335703,3354.4,3354.1,0.002]
[1768430966315,0.404,3354.3,3354.1,0.002]
[1768430967220,0.72105611,3354.8,3354.1,0.002]
[1768430967410,0.61173048,3355.1,3354.1,0.002]
[1768430967411,0.6375703,3354.7,3354.1,0.002]
[1768430969034,0.2335703,3354.5,3354.1,0.002]
[1768430969211,0.404,3354.4,3354.1,0.002]
[1768430970412,0.2335703,3354.5,3354.1,0.002]
[1768430970741,0.404,3354.4,3354.1,0.002]
[1768430971537,0.2335703,3354.9,3354.1,0.002]
[1768430971716,0.2335703,3354.7,3354.1,0.002]
[1768430972815,0.2335703,3354.5,3354.1,0.93426269]
[1768430973215,0.2335703,3354.5,3354.1,0.002]
[1768430973416,0.404,3354.4,3354.1,0.93426269]
[1768430973617,0.2335703,3354.7,3354.1,0.93426269]
[1768430973828,0.404,3354.6,3354.1,0.93426269]
[1768430974247,0.404,3354.5,3354.1,0.002]
[1768430975344,0.404,3354.4,3354.1,0.002]
[1768430975841,3.135,3355.4,3354.1,0.93426269]
[1768430976046,0.404,3355.3,3354.1,0.93426269]
[1768430976540,0.94702081,3355.4,3354.1,0.93426269]
[1768430976747,0.404,3355.3,3354.1,0.93426269]
[1768430977118,0.94702081,3355.4,3354.1,0.93426269]
[1768430977343,1.44571875,3355.3,3354.1,0.93426269]
[1768430977739,0.001,3354.6,3354.1,0.93426269]
[1768430977939,1.44571875,3355.3,3354.6,0.93226269]
[1768430978643,0.404,3355.2,3354.6,0.93226269]
[1768430980254,0.6375703,3355.1,3354.2,0.93226269]
[1768430980454,0.2335703,3354.9,3354.2,0.93226269]
[1768430980821,0.404,3354.8,3354.2,0.93226269]
[1768430983460,0.2335703,3354.9,3354.2,0.93226269]
[1768430983665,0.404,3354.8,3354.2,0.93226269]
[1768430984738,0.2335703,3354.9,3354.2,0.93226269]
[1768430984934,0.404,3354.8,3354.2,0.93226269]
[1768430986466,1.36470211,3355.2,3354.2,0.93226269]
[1768430986760,0.404,3354.9,3354.2,0.93226269]
[1768430987432,3.135,3354.8,3354.2,0.93226269]
[1768430987638,0.404,3354.9,3354.2,0.93226269]
[1768430987953,0.58087021,3354.9,3354.2,0.93226269]
[1768430989062,0.17687021,3354.9,3354.2,0.93226269]
[1768430989947,0.17687021,3354.9,3354.5,0.93226269]
[1768430991467,0.17687021,3354.9,3354.4,0.002]
[1768430992167,0.17687021,3354.9,3354.4,0.92682686]
[1768430993075,0.17687021,3354.9,3354.4,0.002]
[1768430994035,6.49,3355.5,3354.5,0.92482686]
[1768430994556,0.404,3356.0,3354.5,0.92482686]
[1768430995062,0.128,3356.7,3354.5,0.92482686]
[1768430995268,3.539,3356.6,3354.7,0.92482686]
[1768430995456,0.404,3356.5,3354.7,0.92482686]
[1768430996067,3.38338267,3356.4,3354.7,0.92482686]
[1768430996733,2.97938267,3356.4,3354.7,0.92482686]
[1768430996936,0.404,3356.3,3354.7,0.92482686]
[1768430997140,0.63627653,3356.2,3354.7,0.92482686]
[1768430997362,3.135,3356.1,3354.7,0.92482686]
[1768430997563,0.63627653,3356.2,3354.7,0.92482686]
[1768430998065,3.61591797,3356.2,3354.7,0.92482686]
[1768430998279,6.49,3357.0,3354.9,0.92482686]
[1768430998461,0.404,3357.2,3355.1,0.92482686]
[1768430998661,0.404,3357.2,3355.0,0.391]
[1768430998662,0.404,3357.2,3355.3,0.92482686]
[1768430998859,0.404,3357.1,3355.3,0.92482686]
[1768430999370,0.404,3357.2,3355.3,0.92482686]
[1768430999839,3.539,3357.2,3355.3,0.92482686]
[1768431000040,9.09252286,3357.1,3355.3,0.92482686]
[1768431000241,1.24751096,3357.0,3355.3,0.92482686]
[1768431001081,0.2335703,3356.8,3355.3,0.92482686]
[1768431001273,0.404,3356.7,3355.3,0.92482686]
[1768431001454,0.2335703,3356.9,3355.3,0.92482686]
[1768431001655,0.2335703,3356.7,3355.3,0.92482686]
[1768431001859,0.001,3355.9,3355.3,0.92482686]
[1768431012707,0.001,3355.9,3355.1,0.92482686]
[1768431012867,0.001,3355.9,3354.4,0.002]
[1768431012868,0.001,3355.9,3354.9,0.92482686]
[1768431014103,0.001,3355.6,3354.9,0.92482686]
[1768431024501,0.001,3355.6,3354.7,0.95174247]
[1768431026644,0.001,3355.3,3354.7,0.95174247]
[1768431027910,3.38356021,3356.2,3355.2,0.95174247]
[1768431027911,6.36312042,3356.2,3355.2,0.95174247]
[1768431028233,0.63631204,3356.1,3355.2,0.95174247]
[1768431028840,5.95947556,3356.0,3355.2,0.95174247]
[1768431029335,6.36347556,3356.0,3354.5,0.95174247]
[1768431031815,9.34321334,3356.0,3354.5,0.95174247]
[1768431037941,5.95983074,3355.8,3354.5,0.95174247]
[1768431038122,1.24785685,3355.7,3354.5,0.95174247]
[1768431038524,1.24885685,3355.7,3354.5,0.95174247]
[1768431040453,2.98009297,3355.6,3354.5,0.95174247]
[1768431043255,3.38421923,3355.5,3354.5,0.95174247]
[1768431050163,3.38421923,3355.5,3354.8,0.002]
[1768431050359,0.76131395,3355.4,3354.8,0.002]
[1768431050655,0.76131395,3355.4,3354.8,0.92368857]
[1768431054861,0.08643244,3354.8,3354.1,0.9226815]
[1768431055043,0.404,3354.7,3354.1,0.9186815]
[1768431055244,0.404,3354.7,3354.1,0.9026815]
[1768431055446,0.08643244,3354.8,3354.1,0.8846815]
[1768431055650,0.08643244,3354.8,3354.1,0.8686815]
[1768431055851,0.404,3354.7,3354.1,0.85261467]
[1768431056162,0.404,3354.7,3354.1,0.82861467]
[1768431056363,0.404,3354.7,3354.1,0.81261467]
[1768431056532,0.404,3354.7,3354.1,0.79461467]
[1768431056731,2.98098133,3354.6,3354.1,0.77861467]
[1768431056968,0.64523699,3354.5,3354.1,0.76061467]
[1768431057143,0.64523699,3354.5,3354.1,0.74461467]
[1768431057340,0.64523699,3354.5,3354.1,0.72861467]
[1768431057539,0.64523699,3354.5,3354.1,0.71261467]
[1768431057751,0.64523699,3354.5,3354.1,0.69461467]
[1768431057960,0.70111744,3354.4,3354.1,0.67861467]
[1768431058162,0.70111744,3354.4,3354.1,0.66261467]
[1768431058360,0.70111744,3354.4,3354.1,0.64461467]
[1768431058661,3.68228742,3354.4,3354.1,0.62061467]
[1768431058868,3.68228742,3354.4,3354.1,0.60261467]
[1768431059038,3.68228742,3354.4,3354.1,0.58661467]
[1768431059364,3.68228742,3354.4,3354.1,0.56261467]
[1768431059565,3.68228742,3354.4,3354.1,0.54461467]
[1768431059736,3.68228742,3354.4,3354.1,0.52861467]
[1768431059936,3.68228742,3354.4,3354.1,0.51061467]
[1768431060167,3.68228742,3354.4,3354.1,0.49461467]
[1768431060341,3.68228742,3354.4,3353.9,0.92168857]
[1768431060540,0.08643244,3354.8,3353.9,0.92168857]
[1768431060738,3.06727316,3354.8,3353.9,0.92168857]
[1768431063173,3.06727316,3354.8,3354.2,0.92368857]
[1768431064275,0.08643244,3354.8,3354.2,0.92368857]
[1768431070478,2.98062799,3355.0,3354.2,0.92368857]
[1768431071685,3.48214188,3355.0,3354.2,0.92368857]
[1768431075574,0.001,3354.7,3354.2,0.92368857]
[1768431078057,0.001,3354.7,3354.2,0.002]
[1768431080049,0.4320739,3354.7,3354.2,0.002]
[1768431080359,0.4320739,3354.7,3353.9,0.90693161]
[1768431081502,0.4320739,3354.7,3353.9,0.00062639]
[1768431081660,0.404,3354.6,3353.9,0.00062639]
[1768431081981,5.9621404,3354.5,3353.9,0.00062639]
[1768431082183,0.67982143,3354.4,3353.9,0.00062639]
[1768431084706,3.66101276,3354.4,3353.9,0.00062639]